[Event "USA-ch Girls 2017"]
[Site "Saint Louis"]
[Date "2017.07.08"]
[Round "1"]
[White "Nguyen, Emily"]
[Black "Eswaran, Ashritha"]
[Result "1-0"]
[ECO "A62"]
[WhiteElo "2048"]
[BlackElo "2086"]
[Annotator "NA RC"]
[PlyCount "83"]
[EventDate "2017.??.??"]
[EventType "tourn"]
[EventCountry "USA"]
[SourceTitle "playchess.com"]
[Source "ChessBase"]
[SourceQuality "1"]
[TimeControl "40/5400+30:1800+30"]

{[%evp 27,83,32,138,142,133,139,155,178,239,245,390,389,358,387,370,269,307,301,324,329,330,361,425,386,377,416,442,458,542,540,541,449,442,418,507,443,561,585,631,508,658,580,572,577,912,1039,866,1043,1330,1571,29987,29990,29988,29990,29985,29990,29993,29992]} 1. d4 {[%emt 0:00:00]} Nf6 {[%emt 0:00:09]} 2. c4 {[%emt 0:00:00]} e6 {[%emt 0:00:06]} 3. Nf3 {[%emt 0:00:00]} c5 {[%emt 0:00:08]} 4. d5 {[%emt 0:00:00]} exd5 {[%emt 0:00:07]} 5. cxd5 {[%emt 0:00:07]} d6 {[%emt 0:00:26]} 6. g3 {[%emt 0:00:12]} g6 {[%emt 0:00:25]} 7. Nc3 {[%emt 0:00:07]} Bg7 {[%emt 0:00:31]} 8. Bg2 {[%emt 0:00:08]} O-O {[%emt 0:00:08]} 9. O-O {[%emt 0:00:05]} Na6 {[%emt 0:00:56]} 10. Bf4 {[%emt 0:00:28]} Nc7 {[%emt 0:01:18] A62: Modern Benoni: Fianchetto Variation without early ...Nbd7} 11. e4 {[%emt 0:00:50]} (11. a4 Re8 12. Re1 Ne4 13. Nxe4 Rxe4 14. Nd2 Rxf4 15. gxf4 Bxb2 16. Rb1 Bg7 17. Qb3 b6 18. e4 Bh6 19. Qg3 {1-0 (36) Rozum,I (2601)-Martirosyan,H (2529) Moscow 2017}) 11... Bg4 {[%emt 0:06:41]} 12. h3 {[%emt 0:05:04]} Bxf3 {[%emt 0:01:30]} 13. Bxf3 {[%emt 0:00:11]} Nfe8 {[%emt 0:01:18]} 14. Qb3 $146 {[%emt 0:11:16]} ({Predecessor:} 14. a4 b6 15. Qd2 a6 16. Rfd1 Rb8 17. Rab1 b5 18. b4 cxb4 19. Rxb4 {½-½ (30) Chan,K (2152)-Szabo,B (2378) Caleta 2017}) 14... Qf6 {[%emt 0:17:51]} ({Black should try} 14... Rb8 $14) 15. Qxb7 {[%emt 0:14:29]} g5 {[%emt 0:00:26]} 16. e5 $1 {[%emt 0:00:47]} dxe5 {[%emt 0:11:17] [#]} 17. d6 $1 {[%emt 0:10:22]} Qxd6 {[%emt 0:19:30]} (17... Nxd6 $16 18. Qxc7 gxf4) 18. Bxg5 {[%emt 0:02:29]} f5 {[%emt 0:03:40]} (18... Kh8 {keeps fighting.} 19. Bc6 f6) 19. Qb3+ {[%emt 0:05:58]} Kh8 {[%emt 0:00:40]} 20. Bxa8 {[%emt 0:00:53]} Nxa8 {[%emt 0:00:06]} 21. Qd5 {[%emt 0:04:04]} Qg6 {[%emt 0:00:59]} 22. Be7 {[%emt 0:04:05]} Nac7 {[%emt 0:00:10]} 23. Qxc5 {[%emt 0:03:19]} Rg8 {[%emt 0:02:10]} 24. Rad1 {[%emt 0:01:55]} f4 {[%emt 0:04:30]} 25. Bh4 {[%emt 0:03:00]} Qe6 {[%emt 0:08:24]} 26. Kh2 {[%emt 0:04:30]} Bf8 {[%emt 0:02:30]} 27. Qa5 {[%emt 0:01:14]} Rg6 {[%emt 0:01:45]} 28. Ne4 {[%emt 0:05:41]} Qf5 {[%emt 0:01:24]} 29. Qa4 {[%emt 0:02:10]} Rb6 {[%emt 0:03:16]} 30. Qc2 {[%emt 0:09:40]} Rh6 {[%emt 0:04:17]} 31. Qd3 {[%emt 0:02:39]} Rg6 {[%emt 0:02:59]} 32. g4 {[%emt 0:04:32]} Qe6 {[%emt 0:00:59]} 33. Qd7 {[%emt 0:01:09]} Qxa2 {[%emt 0:01:11]} 34. Bd8 {[%emt 0:01:05]} Rg7 {[%emt 0:01:28]} 35. Qf5 {[%emt 0:01:25]} Rf7 {[%emt 0:00:16]} 36. Qxe5+ {[%emt 0:00:06]} Bg7 {[%emt 0:00:03]} 37. Qh5 {[%emt 0:00:25]} Bxb2 {[%emt 0:00:50]} 38. Bxc7 {[%emt 0:00:20]} Qc4 {[%emt 0:00:00]} 39. Be5+ {[%emt 0:00:22]} Kg8 {[%emt 0:03:28]} 40. Qg5+ {[%emt 0:00:00]} Kf8 {[%emt 0:00:22]} 41. Bxb2 {[%emt 0:01:08]} Qb4 {[%emt 0:04:03]} 42. Bd4 {[%emt 0:01:14]} 1-0

[Event "USA-ch Girls 2017"]
[Site "Saint Louis"]
[Date "2017.07.08"]
[Round "1"]
[White "Cervantes Landeiro, Thalia"]
[Black "Bykovtsev, Agata"]
[Result "0-1"]
[ECO "E77"]
[WhiteElo "2032"]
[BlackElo "2045"]
[Annotator "NA RC"]
[PlyCount "88"]
[EventDate "2017.??.??"]
[EventType "tourn"]
[EventCountry "USA"]
[SourceTitle "playchess.com"]
[Source "ChessBase"]
[SourceQuality "1"]
[TimeControl "40/5400+30:1800+30"]

{[%evp 36,88,163,148,175,179,304,410,304,368,493,397,543,506,527,439,407,417,385,278,286,144,199,232,140,189,328,358,561,68,58,0,0,-462,-516,-559,-514,-487,-639,-568,-758,-727,-815,-684,-1039,-1004,-982,-806,-1242,-1315,-1712,-1600,-1920,-1712,-1570]} 1. d4 {[%emt 0:00:00]} Nf6 {[%emt 0:00:06]} 2. c4 {[%emt 0:00:00]} g6 {[%emt 0:00:03]} 3. Nc3 {[%emt 0:00:00]} Bg7 {[%emt 0:00:04]} 4. e4 {[%emt 0:00:00]} d6 {[%emt 0:00:05]} 5. f4 {[%emt 0:00:00]} O-O {[%emt 0:00:22]} 6. Nf3 {[%emt 0:00:04]} c5 {[%emt 0:00:11]} 7. d5 {[%emt 0:00:08]} e6 {[%emt 0:00:20]} 8. dxe6 {[%emt 0:00:08]} fxe6 {[%emt 0:00:11]} 9. Bd3 {[%emt 0:00:08]} Nc6 {[%emt 0:00:15]} 10. O-O {[%emt 0:00:21]} Nd4 {[%emt 0:00:29]} 11. Ng5 {[%emt 0:01:25]} e5 {[%emt 0:01:58] E76: King's Indian: Four Pawns Attack: Lines specific to 6 Nf3 move-order} 12. f5 {[%emt 0:00:46]} h6 {[%emt 0:00:54]} 13. Nh3 {[%emt 0:00:28]} gxf5 {[%emt 0:00:35]} 14. exf5 {[%emt 0:00:13]} b5 {[%emt 0:02:02]} 15. Nxb5 {[%emt 0:02:10]} (15. b3 Bb7 16. Nf2 e4 17. Nfxe4 Nxe4 18. Bxe4 Bxe4 19. Nxe4 {1-0 (28) Komljenovic,D (2457)-Roa Alonso,S (2439) Jaen 2011}) 15... Nxb5 {[%emt 0:00:08]} 16. cxb5 {[%emt 0:00:11]} d5 {[%emt 0:00:38]} 17. a4 {[%emt 0:00:14]} c4 {[%emt 0:04:16]} 18. Bb1 {[%emt 0:02:03]} Qb6+ $146 {[%emt 0:12:44]} (18... Kh8 $16 {was worth a try.}) ({Predecessor:} 18... d4 19. Ba2 {1-0 (27) Carnstam,T-Werner ICCF corr 1985}) 19. Kh1 {[%emt 0:01:39]} a6 {[%emt 0:23:38] [#]} 20. Ra3 $1 {[%emt 0:02:55]} Bb7 {[%emt 0:06:54]} ({Much worse is} 20... axb5 $6 21. Rg3 $14) (20... h5 $142) 21. Rg3 {[%emt 0:05:59]} Kf7 {[%emt 0:06:33]} 22. Rg6 {[%emt 0:07:33]} Rh8 {[%emt 0:04:25]} 23. Nf2 {[%emt 0:11:43]} Qd4 {[%emt 0:17:13]} 24. Qe2 {[%emt 0:04:06]} e4 {[%emt 0:07:28]} 25. Ng4 {[%emt 0:16:49]} Nxg4 {[%emt 0:02:47]} 26. Qxg4 {[%emt 0:01:16]} Bf6 {[%emt 0:00:41]} 27. Qg3 {[%emt 0:10:16]} Qe5 {[%emt 0:02:16] [#]} 28. Qh3 {[%emt 0:04:58]} (28. Rxf6+ $1 $18 Qxf6 29. Qc7+ Qe7 30. Qb6) 28... axb5 {[%emt 0:00:50]} 29. Qh5 {[%emt 0:03:08]} ({Stronger than} 29. Rxh6 Rag8 $15) ({Weaker is} 29. axb5 h5 $16) 29... Ke7 {[%emt 0:00:40]} 30. Be3 {[%emt 0:03:34]} ({Stronger than} 30. axb5 Ra1 $14) 30... bxa4 $2 {[%emt 0:02:38] [#]} (30... Rag8 $16 {was worth a try.}) 31. Rd1 $1 {[%emt 0:04:40]} Raf8 $2 {[%emt 0:01:47]} ({Much weaker is} 31... Qxb2 {[#]} 32. Bxe4 $1 {[%mdl 512]} a3 33. Bc5+ Kd7 34. Bxd5) (31... Rag8 32. Bd4 Qxd4 33. Rxd4 Rxg6) 32. Bc5+ $2 {[%emt 0:00:59]} ({Only move:} 32. Bd4 $18 Qxd4 33. Rxd4 Bxd4 34. Qd1) 32... Kd7 {[%emt 0:00:30]} 33. Bxf8 {[%emt 0:00:48]} (33. Bd4 $16 Qe8 34. Bxf6 Rxf6 35. Bxe4 Rxg6 36. fxg6 Qxe4 37. g7) 33... Rxf8 {[%emt 0:00:03]} 34. Qxh6 $2 {[%emt 0:01:38]} (34. Rxh6 $11 Kc8 35. Bc2) 34... Rh8 {[%emt 0:00:30]} 35. Rxf6 {[%emt 0:03:25]} Rxh6 {[%emt 0:00:02]} 36. Rxh6 {[%emt 0:00:02]} Qxf5 {[%emt 0:00:14]} 37. Kg1 {[%emt 0:00:47]} Qe5 {[%emt 0:00:33]} 38. Bc2 {[%emt 0:01:57]} Bc6 {[%emt 0:00:55]} 39. Rf1 {[%emt 0:06:23]} Qd4+ {[%emt 0:00:22]} 40. Kh1 {[%emt 0:00:00]} Qxb2 {[%emt 0:00:43]} 41. Bd1 {[%emt 0:02:04]} Kc7 {[%emt 0:15:06]} 42. h4 {[%emt 0:04:48]} a3 {[%emt 0:02:46]} 43. Kh2 {[%emt 0:07:25]} Qe5+ {[%emt 0:04:53]} 44. Kh3 {[%emt 0:02:42]} Qg7 $19 {[%emt 0:04:10]} 0-1

[Event "USA-ch Girls 2017"]
[Site "Saint Louis"]
[Date "2017.07.09"]
[Round "2"]
[White "Eswaran, Ashritha"]
[Black "Wang, Annie"]
[Result "0-1"]
[ECO "C94"]
[WhiteElo "2086"]
[BlackElo "2023"]
[Annotator "NA RC"]
[PlyCount "122"]
[EventDate "2017.??.??"]
[EventType "tourn"]
[EventCountry "USA"]
[SourceTitle "playchess.com"]
[Source "ChessBase"]
[SourceQuality "1"]
[TimeControl "40/5400+30:1800+30"]

{[%evp 17,112,26,32767,23,41,43,32767,32767,32767,32767,32767,26,26,12,0,-23,35,21,77,53,82,72,108,117,82,0,0,0,6,-15,0,-25,2,-22,-5,-2,31,8,36,33,34,0,19,11,13,14,10,0,32767,32767,32767,32767,32767,0,0,0,0,-14,0,-33,-27,-26,32767,32767,32767,32767,-7,-52,-51,-77,-79,-85,-94,-69,-101,-188,-170,-193,-173,-202,-196,-218,-193,-181,-195,-193,32767,32767,32767,32767,32767,-443,-556,-564,-596,-536,-641]} 1. e4 {[%emt 0:00:00]} e5 {[%emt 0:00:07]} 2. Nf3 {[%emt 0:00:00]} Nc6 {[%emt 0:00:07]} 3. Bb5 {[%emt 0:01:17]} a6 {[%emt 0:00:11]} 4. Ba4 {[%emt 0:00:15]} Nf6 {[%emt 0:00:12]} 5. O-O {[%emt 0:02:07]} Be7 {[%emt 0:00:10]} 6. Re1 {[%emt 0:01:31]} b5 {[%emt 0:00:10]} 7. Bb3 {[%emt 0:00:08]} d6 {[%emt 0:00:35]} 8. c3 {[%emt 0:00:41]} O-O {[%emt 0:00:12]} 9. h3 {[%emt 0:03:35]} Nb8 {[%emt 0:00:17]} 10. d3 {[%emt 0:02:33]} Bb7 {[%emt 0:08:01] LiveBook: 64 Games} 11. Nbd2 {[%emt 0:01:17]} Nbd7 {[%emt 0:02:19]} 12. Nf1 {[%emt 0:00:53]} Nc5 {[%emt 0:10:03]} 13. Bc2 {[%emt 0:02:25]} Re8 {[%emt 0:02:10]} 14. Ng3 {[%emt 0:08:27]} Bf8 {[%emt 0:06:41]} 15. Nf5 {[%emt 0:03:19]} d5 {[%emt 0:15:55]} 16. d4 {[%emt 0:13:39]} dxe4 {[%emt 0:22:17]} (16... exd4 $15 17. e5 d3 18. Bxd3 Nxd3 19. Qxd3 Ne4) 17. Nxe5 {[%emt 0:01:05]} Ncd7 {[%emt 0:01:01]} 18. Ng4 {[%emt 0:03:51]} Nxg4 {[%emt 0:10:45]} 19. Qxg4 {[%emt 0:01:34]} Kh8 {[%emt 0:00:57]} 20. Bg5 {[%emt 0:03:21]} f6 {[%emt 0:04:39]} 21. Bh6 {[%emt 0:05:14]} (21. Bh4 $16) 21... g6 $1 {[%emt 0:00:10]} ({Not} 21... gxh6 22. Bb3 Bd5 23. Bxd5 Re6 24. Bxe6 Qe8 25. Qg8#) 22. Bb3 {[%emt 0:01:45]} Nb6 $1 {[%emt 0:02:39]} 23. Bxf8 {[%emt 0:06:49]} Rxf8 {[%emt 0:00:10]} 24. Ne3 {[%emt 0:01:14]} Qd6 {[%emt 0:01:25]} 25. Qe6 {[%emt 0:02:59]} Qxe6 {[%emt 0:00:38]} 26. Bxe6 {[%emt 0:00:07]} Rae8 {[%emt 0:00:08]} 27. Bb3 {[%emt 0:01:03]} f5 {[%emt 0:00:41]} 28. a4 {[%emt 0:02:28]} Ra8 {[%emt 0:02:21]} 29. Nc2 {[%emt 0:04:07]} (29. a5 $5 {[%cal Ra5b6]} Nd7 30. Nd5 $14) 29... Nd5 {[%emt 0:04:14]} 30. Bxd5 {[%emt 0:01:04]} Bxd5 {[%emt 0:00:11]} 31. Nb4 {[%emt 0:00:10]} Bb7 {[%emt 0:01:41]} 32. a5 {[%emt 0:01:59]} Rad8 {[%emt 0:00:41]} 33. Rac1 {[%emt 0:01:41]} Rf6 {[%emt 0:01:24]} 34. Red1 {[%emt 0:02:38]} Rfd6 {[%emt 0:00:23]} 35. Re1 {[%emt 0:02:55]} R8d7 {[%emt 0:00:44]} 36. Kf1 {[%emt 0:02:55]} (36. f3 $5) 36... Kg7 {[%emt 0:00:21]} 37. Ke2 {[%emt 0:01:24]} g5 {[%emt 0:01:45]} 38. Red1 {[%emt 0:03:15]} Kf6 {[%emt 0:01:11]} 39. b3 {[%emt 0:02:45]} Ke6 {[%emt 0:00:41]} 40. g3 {[%emt 0:00:00]} f4 {[%emt 0:01:05]} 41. gxf4 {[%emt 0:03:00]} gxf4 {[%emt 0:00:22]} 42. Rg1 {[%emt 0:00:32]} c5 $1 {[%emt 0:20:10]} 43. dxc5 {[%emt 0:07:24]} Rd2+ {[%emt 0:00:09]} 44. Ke1 {[%emt 0:05:12]} e3 {[%emt 0:08:03]} 45. fxe3 {[%emt 0:01:50]} f3 {[%emt 0:02:03]} 46. Rg8 {[%emt 0:03:06] [#]} (46. Rg4 $17 {was necessary.} Rh2 47. c6 Bxc6 48. Nxc6 Rh1+ 49. Kf2 Rxc1 50. c4) 46... Rh2 $1 {[%emt 0:00:43]} 47. Rc2 {[%emt 0:04:42]} Rxc2 {[%emt 0:00:14]} 48. Nxc2 {[%emt 0:00:07] [#]} f2+ $1 {[%emt 0:00:03]} 49. Kxf2 {[%emt 0:01:25]} Rd2+ {[%emt 0:00:04]} 50. Ke1 {[%emt 0:00:14]} Rxc2 {[%emt 0:00:02]} 51. Rb8 {[%emt 0:00:35]} Be4 {[%emt 0:00:53]} 52. Rb6+ {[%emt 0:00:57]} Kd5 {[%emt 0:00:12]} 53. b4 {[%emt 0:00:50]} Kc4 {[%emt 0:03:04]} 54. Rd6 {[%emt 0:01:56]} Kxc3 {[%emt 0:00:28]} 55. Rd4 {[%emt 0:00:31]} Bg6 {[%emt 0:00:06]} 56. h4 {[%emt 0:02:34]} Kb3 $19 {[%emt 0:01:04]} 57. Kd1 {[%emt 0:03:57]} Rc4 {[%emt 0:00:22]} 58. Rd6 {[%emt 0:01:55]} Kxb4 {[%emt 0:00:09]} 59. Rxa6 {[%emt 0:00:19]} Kxc5 {[%emt 0:00:17]} 60. Re6 {[%emt 0:00:14]} Rxh4 {[%emt 0:00:20]} 61. a6 {[%emt 0:00:45]} Ra4 {[%emt 0:00:15]} 0-1

[Event "USA-ch Girls 2017"]
[Site "Saint Louis"]
[Date "2017.07.09"]
[Round "2"]
[White "Cervantes Landeiro, Thalia"]
[Black "Nguyen, Emily"]
[Result "1/2-1/2"]
[ECO "D11"]
[WhiteElo "2032"]
[BlackElo "2048"]
[Annotator "NA RC"]
[PlyCount "110"]
[EventDate "2017.??.??"]
[EventType "tourn"]
[EventCountry "USA"]
[SourceTitle "playchess.com"]
[Source "ChessBase"]
[SourceQuality "1"]
[TimeControl "40/5400+30:1800+30"]

{[%evp 14,110,23,26,31,9,22,38,56,32767,32767,32767,54,44,51,58,46,45,43,27,69,32767,32767,20,37,41,52,53,52,63,45,35,58,62,66,53,79,71,32767,32767,140,32767,171,172,166,150,147,136,153,130,127,135,181,32767,261,314,278,316,310,416,398,473,502,699,494,372,323,422,32767,32767,636,869,612,827,932,32767,32767,6107,29984,6617,208,276,217,205,29989,221,205,221,221,221,203,194,203,205,187,203,187,203,216]} 1. d4 {[%emt 0:00:00]} d5 {[%emt 0:00:08]} 2. c4 {[%emt 0:00:00]} c6 {[%emt 0:00:04]} 3. Nf3 {[%emt 0:00:00]} Nf6 {[%emt 0:00:03]} 4. e3 {[%emt 0:00:00]} e6 {[%emt 0:00:04]} 5. b3 {[%emt 0:00:00]} c5 {[%emt 0:01:19]} 6. Nbd2 {[%emt 0:04:16]} cxd4 {[%emt 0:03:51] D30: Queen's Gambit Declined: Systems without Nc3} 7. exd4 {[%emt 0:00:24]} Nc6 {[%emt 0:03:54]} 8. Bb2 {[%emt 0:03:31]} Bd6 {[%emt 0:02:23]} (8... Be7 9. g3 O-O 10. Bg2 b6 11. O-O Bb7 12. Qe2 Rc8 13. Rfd1 {½-½ (71) Markus,R (2673)-Kollars,D (2503) Zalakaros 2017}) 9. Bd3 {[%emt 0:01:48]} (9. c5 $5 {[%cal Rc5d6]} Bf4 10. Bd3 $11) 9... O-O {[%emt 0:00:14] LiveBook: 3 Games} 10. O-O {[%emt 0:00:14]} Re8 $146 {[%emt 0:00:52]} ({Predecessor:} 10... b6 11. Qe2 Bb7 12. Rad1 Ne7 13. Ne5 Ng6 14. f4 {1-0 (40) Brunello,S (2567)-Mihajlov,S (2387) Reykjavik 2016}) 11. Ne5 {[%emt 0:07:18]} Bf8 {[%emt 0:06:55]} 12. Rc1 {[%emt 0:07:58]} dxc4 {[%emt 0:09:02]} 13. Nxc6 {[%emt 0:02:16]} bxc6 {[%emt 0:00:06]} 14. Nxc4 {[%emt 0:06:30]} Bb7 {[%emt 0:04:06]} 15. Ne5 {[%emt 0:03:24]} Rc8 {[%emt 0:07:44]} 16. Qf3 {[%emt 0:08:20]} Qd5 {[%emt 0:04:30]} 17. Qxd5 {[%emt 0:12:21]} Nxd5 {[%emt 0:02:04]} 18. Nd7 {[%emt 0:08:23]} Nf4 {[%emt 0:08:16]} 19. Bc4 {[%emt 0:06:18]} c5 {[%emt 0:02:56]} 20. f3 {[%emt 0:02:51]} cxd4 {[%emt 0:06:58]} 21. Nxf8 {[%emt 0:00:46]} Rxf8 {[%emt 0:16:19]} 22. Bxd4 {[%emt 0:02:08]} Rfd8 {[%emt 0:05:00]} 23. Be3 {[%emt 0:06:47]} Nd5 {[%emt 0:05:39]} 24. Bxd5 {[%emt 0:01:38]} exd5 {[%emt 0:01:58]} 25. Bxa7 {[%emt 0:02:55]} Ra8 {[%emt 0:02:31]} 26. Bb6 {[%emt 0:00:19]} Rd6 {[%emt 0:00:39]} 27. Bc5 {[%emt 0:00:52]} Rc6 {[%emt 0:01:53]} 28. a4 {[%emt 0:01:03]} f6 {[%emt 0:02:12]} 29. Be3 {[%emt 0:01:33]} Rac8 {[%emt 0:01:18]} 30. Rxc6 {[%emt 0:00:24]} Rxc6 {[%emt 0:00:27]} 31. Rc1 {[%emt 0:00:38]} Rxc1+ {[%emt 0:00:30]} 32. Bxc1 {[%emt 0:00:03]} Bc6 {[%emt 0:00:07]} (32... d4 $16 {might work better.} 33. Bb2 d3) 33. Kf2 {[%emt 0:00:15]} Kf7 {[%emt 0:00:29] [#]} 34. Ke3 $1 {[%emt 0:00:13]} Ke6 {[%emt 0:00:44]} 35. Kd4 {[%emt 0:00:09]} Kd7 {[%emt 0:00:15]} 36. Kc5 {[%emt 0:00:26]} Kc7 {[%emt 0:00:22]} 37. a5 {[%emt 0:00:40]} g5 {[%emt 0:01:42]} 38. b4 {[%emt 0:00:34]} Bd7 {[%emt 0:00:51]} 39. Kxd5 {[%emt 0:00:43]} Kb7 {[%emt 0:00:52]} 40. Kd6 {[%emt 0:00:00]} Bc8 {[%emt 0:00:07]} 41. b5 {[%emt 0:00:45]} Bf5 {[%emt 0:00:59]} 42. a6+ {[%emt 0:00:31]} Kb8 {[%emt 0:00:06]} 43. b6 {[%emt 0:00:16]} Bd3 {[%emt 0:00:04]} 44. a7+ {[%emt 0:00:27]} Kb7 {[%emt 0:00:28] [#]} 45. Be3 {[%emt 0:01:57]} (45. a8=Q+ $142 $1 Kxa8 46. Kc7 Ba6 {[#]} 47. Bxg5 $1 {[%mdl 512]} fxg5 (47... f5 48. g4 f4 49. Bxf4 Bb7 50. g5) 48. g3 h5 49. f4 gxf4 50. gxf4) 45... Bf1 {[%emt 0:03:41]} 46. g3 {[%emt 0:00:55]} Be2 {[%emt 0:02:17] [#]} 47. f4 $2 {[%emt 0:04:17]} (47. a8=R $1 {mates} Kxa8 48. Kc7 Bxf3 {[#]} 49. g4 $1 {[%mdl 512]} Bg2 50. Bd4 Bd5 51. Bxf6 Be4 52. Bxg5) 47... gxf4 {[%emt 0:01:17]} 48. gxf4 {[%emt 0:02:07]} Bg4 $2 {[%emt 0:04:47] [#]} (48... f5 $18 49. Ke6 Bg4) 49. Ke7 $2 {[%emt 0:01:27]} (49. a8=Q+ $1 {mates} Kxa8 50. Kc7 Bf3 51. f5 h5 52. Bd4 h4 53. Bxf6 Bd5 54. Bxh4) 49... f5 {[%emt 0:00:07]} 50. Kf6 {[%emt 0:00:15]} h5 {[%emt 0:00:42]} 51. Kg5 {[%emt 0:00:23]} Ka8 {[%emt 0:00:08]} 52. Kh4 {[%emt 0:00:20]} Bf3 {[%emt 0:01:43]} 53. Bd4 {[%emt 0:11:35]} Kb7 {[%emt 0:01:25]} 54. Kg3 {[%emt 0:03:05]} Be2 {[%emt 0:00:36]} 55. h3 $18 {[%emt 0:03:40]} Bf1 {[%emt 0:00:14]} 1/2-1/2